[Event "Titled Tuesday Blitz October 5 2021"]
[White "Madaminov, Mukhiddin"]
[Black "Sarana, Alexey"]
[WhiteFideId "14210703"]
[BlackFideId "24133795"]
[WhiteElo "2705"]
[BlackElo "2968"]
[Result "1-0"]
[Round "11"]
[TimeControl "180+1"]
[Date "2021.10.05"]
[WhiteClock "0:00:06"]
[BlackClock "0:00:08"]

1. e4 {[%clk 0:03:00]}  c5 {[%clk 0:02:59]} 2. Nf3 {[%clk 0:03:01]}  d6 {[%clk 0:02:59]} 3. Bb5+ {[%clk 0:03:00]}  Bd7 {[%clk 0:02:59]} 4. c4 {[%clk 0:03:00]}  e6 {[%clk 0:02:58]} 5. O-O {[%clk 0:03:00]}  Be7 {[%clk 0:02:58]} 6. Nc3 {[%clk 0:02:59]}  Bf6 {[%clk 0:02:58]} 7. d4 {[%clk 0:02:53]}  cxd4 {[%clk 0:02:57]} 8. Nxd4 {[%clk 0:02:54]}  Nc6 {[%clk 0:02:57]} 9. Be3 {[%clk 0:02:50]}  Nge7 {[%clk 0:02:55]} 10. Qd2 {[%clk 0:02:47]}  O-O {[%clk 0:02:54]} 11. Rad1 {[%clk 0:02:48]}  Rc8 {[%clk 0:02:51]} 12. Nxc6 {[%clk 0:02:44]}  bxc6 {[%clk 0:02:51]} 13. Ba6 {[%clk 0:02:44]}  Qa5 {[%clk 0:02:07]} 14. Bxc8 {[%clk 0:02:40]}  Nxc8 {[%clk 0:02:08]} 15. Nd5 {[%clk 0:02:29]}  Bd8 {[%clk 0:02:08]} 16. Qxa5 {[%clk 0:02:11]}  Bxa5 {[%clk 0:02:09]} 17. Nc3 {[%clk 0:02:12]}  Rd8 {[%clk 0:02:02]} 18. Rd3 {[%clk 0:02:04]}  Be8 {[%clk 0:02:01]} 19. Rfd1 {[%clk 0:02:03]}  Kf8 {[%clk 0:01:56]} 20. e5 {[%clk 0:01:16]}  d5 {[%clk 0:01:56]} 21. Bc5+ {[%clk 0:01:17]}  Kg8 {[%clk 0:01:56]} 22. Ne4 {[%clk 0:01:17]}  Bc7 {[%clk 0:01:51]} 23. f4 {[%clk 0:01:17]}  f6 {[%clk 0:01:44]} 24. exf6 {[%clk 0:01:04]}  Bg6 {[%clk 0:01:44]} 25. f7+ {[%clk 0:00:58]}  Bxf7 {[%clk 0:01:12]} 26. Ng5 {[%clk 0:00:56]}  Nb6 {[%clk 0:01:07]} 27. b3 {[%clk 0:00:47]}  Nd7 {[%clk 0:00:59]} 28. Bxa7 {[%clk 0:00:37]}  Ra8 {[%clk 0:00:59]} 29. Bd4 {[%clk 0:00:37]}  Bg6 {[%clk 0:00:57]} 30. Nxe6 {[%clk 0:00:30]}  Bd6 {[%clk 0:00:50]} 31. R3d2 {[%clk 0:00:24]}  c5 {[%clk 0:00:50]} 32. Bxg7 {[%clk 0:00:14]}  d4 {[%clk 0:00:50]} 33. Bxd4 {[%clk 0:00:12]}  cxd4 {[%clk 0:00:25]} 34. Rxd4 {[%clk 0:00:13]}  Rxa2 {[%clk 0:00:22]} 35. Rxd6 {[%clk 0:00:12]}  Nf6 {[%clk 0:00:22]} 36. Rd8+ {[%clk 0:00:07]}  Kf7 {[%clk 0:00:22]} 37. Ng5+ {[%clk 0:00:05]}  Ke7 {[%clk 0:00:22]} 38. R8d2 {[%clk 0:00:05]}  Ra3 {[%clk 0:00:22]} 39. Re1+ {[%clk 0:00:05]}  Kf8 {[%clk 0:00:22]} 40. Rd8+ {[%clk 0:00:04]}  Kg7 {[%clk 0:00:22]} 41. Rd6 {[%clk 0:00:03]}  Rxb3 {[%clk 0:00:20]} 42. Re7+ {[%clk 0:00:03]}  Kf8 {[%clk 0:00:20]} 43. Ra7 {[%clk 0:00:04]}  Rb1+ {[%clk 0:00:20]} 44. Kf2 {[%clk 0:00:04]}  Rb2+ {[%clk 0:00:20]} 45. Kg3 {[%clk 0:00:03]}  Nh5+ {[%clk 0:00:10]} 46. Kh4 {[%clk 0:00:03]}  Be8 {[%clk 0:00:09]} 47. Rd8 {[%clk 0:00:02]}  Re2 {[%clk 0:00:07]} 48. Rf7+ {[%clk 0:00:01]}  Kg8 {[%clk 0:00:08]} 49. Rxe8+ {[%clk 0:00:02]}  Rxe8 {[%clk 0:00:08]} 50. Kxh5 {[%clk 0:00:03]}  Rc8 {[%clk 0:00:08]} 51. Rxh7 {[%clk 0:00:03]}  Rxc4 {[%clk 0:00:08]} 52. Rd7 {[%clk 0:00:03]}  Rc2 {[%clk 0:00:07]} 53. Kg6 {[%clk 0:00:03]}  Rc6+ {[%clk 0:00:07]} 54. Kh5 {[%clk 0:00:03]}  Kf8 {[%clk 0:00:08]} 55. g4 {[%clk 0:00:04]}  Ra6 {[%clk 0:00:07]} 56. Rh7 {[%clk 0:00:04]}  Kg8 {[%clk 0:00:07]} 57. Rh6 {[%clk 0:00:04]}  Ra2 {[%clk 0:00:07]} 58. f5 {[%clk 0:00:05]}  Rxh2+ {[%clk 0:00:07]} 59. Kg6 {[%clk 0:00:06]}  Ra2 {[%clk 0:00:08]} 60. f6 {[%clk 0:00:06]}  Ra6 {[%clk 0:00:08]} 61. Rh1 {[%clk 0:00:06]}  Rb6 {[%clk 0:00:08]} 62. Rd1 {[%clk 0:00:06]}  Rb8 {[%clk 0:00:08]} 63. Rd7 {[%clk 0:00:06]}  Rf8 {[%clk 0:00:06]} 64. Rg7+ {[%clk 0:00:06]}  Kh8 {[%clk 0:00:06]} 65. Rh7+ {[%clk 0:00:05]}  Kg8 {[%clk 0:00:06]} 66. f7+ {[%clk 0:00:06]}  Rxf7 {[%clk 0:00:07]} 67. Rxf7 {[%clk 0:00:05]}  Kh8 {[%clk 0:00:08]} 68. Rf8# {[%clk 0:00:06]} 1-0


[Site "https://www.chess.com"]

[Event "Titled Tuesday Blitz October 5 2021"]
[White "Martin Carmona, Gaston Manuel"]
[Black "Iskusnyh, Sergei"]
[WhiteFideId "22284567"]
[BlackFideId "4120027"]
[WhiteElo "2161"]
[BlackElo "2492"]
[Result "1/2-1/2"]
[Round "11"]
[TimeControl "180+1"]
[Date "2021.10.05"]
[WhiteClock "0:00:14"]
[BlackClock "0:00:16"]

1. d4 {[%clk 0:03:00]}  d5 {[%clk 0:02:59]} 2. Nf3 {[%clk 0:03:01]}  Nf6 {[%clk 0:02:59]} 3. c4 {[%clk 0:03:01]}  c6 {[%clk 0:02:58]} 4. e3 {[%clk 0:03:00]}  a6 {[%clk 0:02:55]} 5. Nc3 {[%clk 0:02:58]}  e6 {[%clk 0:02:55]} 6. b3 {[%clk 0:02:21]}  Bb4 {[%clk 0:02:53]} 7. Bd2 {[%clk 0:02:21]}  Nbd7 {[%clk 0:02:52]} 8. Bd3 {[%clk 0:02:21]}  O-O {[%clk 0:02:52]} 9. O-O {[%clk 0:02:15]}  Bd6 {[%clk 0:02:52]} 10. Qc2 {[%clk 0:02:10]}  e5 {[%clk 0:02:51]} 11. cxd5 {[%clk 0:02:06]}  cxd5 {[%clk 0:02:51]} 12. dxe5 {[%clk 0:02:04]}  Nxe5 {[%clk 0:02:51]} 13. Nxe5 {[%clk 0:02:03]}  Bxe5 {[%clk 0:02:51]} 14. h3 {[%clk 0:02:03]}  Bd7 {[%clk 0:02:42]} 15. Rac1 {[%clk 0:01:50]}  Qe7 {[%clk 0:02:36]} 16. Ne2 {[%clk 0:01:44]}  Rac8 {[%clk 0:02:20]} 17. Bc3 {[%clk 0:01:43]}  Bb8 {[%clk 0:02:04]} 18. Qd2 {[%clk 0:01:29]}  Rfd8 {[%clk 0:01:44]} 19. Rfd1 {[%clk 0:01:22]}  Qd6 {[%clk 0:00:53]} 20. Ng3 {[%clk 0:01:09]}  Qe7 {[%clk 0:00:40]} 21. Ba5 {[%clk 0:01:05]}  Re8 {[%clk 0:00:36]} 22. Nf1 {[%clk 0:01:04]}  Bc6 {[%clk 0:00:31]} 23. Bc3 {[%clk 0:00:58]}  Ne4 {[%clk 0:00:31]} 24. Bxe4 {[%clk 0:00:58]}  dxe4 {[%clk 0:00:32]} 25. Qd4 {[%clk 0:00:55]}  f6 {[%clk 0:00:32]} 26. Bb4 {[%clk 0:00:51]}  Qf7 {[%clk 0:00:31]} 27. Bd6 {[%clk 0:00:49]}  Rcd8 {[%clk 0:00:30]} 28. Qb4 {[%clk 0:00:49]}  Ba7 {[%clk 0:00:25]} 29. Bc5 {[%clk 0:00:48]}  Bb8 {[%clk 0:00:25]} 30. Bd6 {[%clk 0:00:48]}  Bxd6 {[%clk 0:00:24]} 31. Rxd6 {[%clk 0:00:48]}  Qe7 {[%clk 0:00:22]} 32. Rcd1 {[%clk 0:00:46]}  Rxd6 {[%clk 0:00:21]} 33. Qxd6 {[%clk 0:00:45]}  Qxd6 {[%clk 0:00:20]} 34. Rxd6 {[%clk 0:00:46]}  Bb5 {[%clk 0:00:20]} 35. Nd2 {[%clk 0:00:45]}  Bd3 {[%clk 0:00:20]} 36. Rd7 {[%clk 0:00:43]}  Rc8 {[%clk 0:00:19]} 37. Rxb7 {[%clk 0:00:39]}  Rc1+ {[%clk 0:00:19]} 38. Kh2 {[%clk 0:00:40]}  Rc2 {[%clk 0:00:20]} 39. Nc4 {[%clk 0:00:40]}  Rxf2 {[%clk 0:00:20]} 40. Nd6 {[%clk 0:00:39]}  h5 {[%clk 0:00:20]} 41. Kg3 {[%clk 0:00:33]}  Rxa2 {[%clk 0:00:20]} 42. b4 {[%clk 0:00:26]}  h4+ {[%clk 0:00:19]} 43. Kxh4 {[%clk 0:00:24]}  Rxg2 {[%clk 0:00:19]} 44. Re7 {[%clk 0:00:23]}  Be2 {[%clk 0:00:19]} 45. Re8+ {[%clk 0:00:14]}  Kh7 {[%clk 0:00:18]} 46. Re7 {[%clk 0:00:15]}  Kg8 {[%clk 0:00:16]} 47. Re8+ {[%clk 0:00:15]}  Kh7 {[%clk 0:00:17]} 48. Re7 {[%clk 0:00:16]}  Kh6 {[%clk 0:00:17]} 49. Nf5+ {[%clk 0:00:14]}  Kh7 {[%clk 0:00:16]} 50. Nd6 {[%clk 0:00:14]} 1/2-1/2


[Site "https://www.chess.com"]

[Event "Titled Tuesday Blitz October 5 2021"]
[White "Nenezic, Marko"]
[Black "Vovk, Orest"]
[WhiteFideId "912123"]
[BlackFideId "14113490"]
[WhiteElo "2484"]
[BlackElo "2203"]
[Result "0-1"]
[Round "11"]
[TimeControl "180+1"]
[Date "2021.10.05"]
[WhiteClock "0:00:24"]
[BlackClock "0:00:02"]

1. d4 {[%clk 0:03:00]}  h6 {[%clk 0:02:59]} 2. c4 {[%clk 0:03:01]}  g5 {[%clk 0:02:59]} 3. Nc3 {[%clk 0:03:01]}  Bg7 {[%clk 0:03:00]} 4. e4 {[%clk 0:02:59]}  c5 {[%clk 0:03:00]} 5. d5 {[%clk 0:03:00]}  Bxc3+ {[%clk 0:03:00]} 6. bxc3 {[%clk 0:02:59]}  d6 {[%clk 0:03:00]} 7. h4 {[%clk 0:02:58]}  Qa5 {[%clk 0:02:59]} 8. hxg5 {[%clk 0:02:54]}  hxg5 {[%clk 0:02:58]} 9. Rxh8 {[%clk 0:02:48]}  Qxc3+ {[%clk 0:02:58]} 10. Bd2 {[%clk 0:02:48]}  Qxh8 {[%clk 0:02:59]} 11. Bxg5 {[%clk 0:02:44]}  Qe5 {[%clk 0:02:57]} 12. Be3 {[%clk 0:02:42]}  Qxe4 {[%clk 0:02:54]} 13. Nf3 {[%clk 0:02:42]}  Bg4 {[%clk 0:02:48]} 14. Bd3 {[%clk 0:02:40]}  Bxf3 {[%clk 0:02:46]} 15. gxf3 {[%clk 0:02:38]}  Qh4 {[%clk 0:02:42]} 16. Rb1 {[%clk 0:02:32]}  Nd7 {[%clk 0:02:33]} 17. Rxb7 {[%clk 0:02:28]}  Ne5 {[%clk 0:02:32]} 18. Be2 {[%clk 0:02:18]}  Kf8 {[%clk 0:02:21]} 19. f4 {[%clk 0:02:16]}  Ng6 {[%clk 0:02:11]} 20. Qd3 {[%clk 0:01:28]}  Nf6 {[%clk 0:02:05]} 21. Qf5 {[%clk 0:01:27]}  Qh1+ {[%clk 0:01:44]} 22. Kd2 {[%clk 0:01:26]}  Ne4+ {[%clk 0:01:43]} 23. Kc2 {[%clk 0:01:26]}  Qe1 {[%clk 0:01:27]} 24. Qxe4 {[%clk 0:01:16]}  Qxe2+ {[%clk 0:01:27]} 25. Kb3 {[%clk 0:01:16]}  a5 {[%clk 0:01:22]} 26. a4 {[%clk 0:01:15]}  Qd1+ {[%clk 0:01:07]} 27. Qc2 {[%clk 0:01:14]}  Qf1 {[%clk 0:00:52]} 28. Ka2 {[%clk 0:01:10]}  Kg7 {[%clk 0:00:37]} 29. Qb2+ {[%clk 0:00:58]}  Kg8 {[%clk 0:00:21]} 30. Qc3 {[%clk 0:00:54]}  f5 {[%clk 0:00:15]} 31. Rb1 {[%clk 0:00:52]}  Qe2+ {[%clk 0:00:14]} 32. Ka3 {[%clk 0:00:50]}  Kf7 {[%clk 0:00:13]} 33. Rh1 {[%clk 0:00:50]}  Rb8 {[%clk 0:00:08]} 34. Rh7+ {[%clk 0:00:46]}  Ke8 {[%clk 0:00:08]} 35. Rh8+ {[%clk 0:00:46]}  Nxh8 {[%clk 0:00:06]} 36. Qxh8+ {[%clk 0:00:47]}  Kf7 {[%clk 0:00:06]} 37. Qxb8 {[%clk 0:00:47]}  Qxc4 {[%clk 0:00:07]} 38. Qb3 {[%clk 0:00:46]}  Qe2 {[%clk 0:00:04]} 39. Qc3 {[%clk 0:00:43]}  Qd1 {[%clk 0:00:02]} 40. Qxa5 {[%clk 0:00:29]}  Qa1+ {[%clk 0:00:02]} 41. Kb3 {[%clk 0:00:29]}  Qb1+ {[%clk 0:00:03]} 42. Kc3 {[%clk 0:00:27]}  Qe1+ {[%clk 0:00:02]} 43. Bd2 {[%clk 0:00:28]}  Qxf2 {[%clk 0:00:03]} 44. Qxc5 {[%clk 0:00:24]}  Qxc5+ {[%clk 0:00:02]} 0-1


[Site "https://www.chess.com"]

[Event "Titled Tuesday Blitz October 5 2021"]
[White "Nilsen, Tobias Lang"]
[Black "Langrock, Hannes"]
[WhiteFideId "1521624"]
[BlackFideId "4655290"]
[WhiteElo "1975"]
[BlackElo "2325"]
[Result "0-1"]
[Round "11"]
[TimeControl "180+1"]
[Date "2021.10.05"]
[WhiteClock "0:02:02"]
[BlackClock "0:01:00"]

1. d4 {[%clk 0:03:00]}  Nf6 {[%clk 0:02:57]} 2. Bf4 {[%clk 0:03:01]}  d5 {[%clk 0:02:52]} 3. e3 {[%clk 0:03:00]}  e6 {[%clk 0:02:46]} 4. Bd3 {[%clk 0:02:58]}  Bd6 {[%clk 0:02:46]} 5. Nd2 {[%clk 0:02:57]}  Bxf4 {[%clk 0:02:46]} 6. exf4 {[%clk 0:02:58]}  c5 {[%clk 0:02:43]} 7. c3 {[%clk 0:02:58]}  cxd4 {[%clk 0:02:42]} 8. cxd4 {[%clk 0:02:59]}  Nc6 {[%clk 0:02:41]} 9. Ngf3 {[%clk 0:02:58]}  Qb6 {[%clk 0:02:41]} 10. Nb3 {[%clk 0:02:59]}  a5 {[%clk 0:02:39]} 11. O-O {[%clk 0:02:56]}  a4 {[%clk 0:02:23]} 12. Nc5 {[%clk 0:02:54]}  Nxd4 {[%clk 0:02:18]} 13. Nxd4 {[%clk 0:02:55]}  Qxc5 {[%clk 0:02:18]} 14. Rc1 {[%clk 0:02:55]}  Qb6 {[%clk 0:02:15]} 15. g4 {[%clk 0:02:50]}  Bd7 {[%clk 0:02:09]} 16. g5 {[%clk 0:02:48]}  Qxd4 {[%clk 0:02:06]} 17. gxf6 {[%clk 0:02:47]}  gxf6 {[%clk 0:01:51]} 18. Qf3 {[%clk 0:02:46]}  Bc6 {[%clk 0:01:45]} 19. Rfd1 {[%clk 0:02:35]}  Qb4 {[%clk 0:01:32]} 20. a3 {[%clk 0:02:31]}  Qxb2 {[%clk 0:01:27]} 21. Rc2 {[%clk 0:02:31]}  Qxa3 {[%clk 0:01:23]} 22. Re1 {[%clk 0:02:24]}  Rg8+ {[%clk 0:01:18]} 23. Kh1 {[%clk 0:02:22]}  Qd6 {[%clk 0:01:05]} 24. Rd2 {[%clk 0:02:07]}  a3 {[%clk 0:01:00]} 25. Bf5 {[%clk 0:02:02]} 0-1


[Site "https://www.chess.com"]

[Event "Titled Tuesday Blitz October 5 2021"]
[White "Ozen, Bahadir"]
[Black "Zhigalko, Sergei"]
[WhiteFideId "6337058"]
[BlackFideId "13502956"]
[WhiteElo "2503"]
[BlackElo "2662"]
[Result "1/2-1/2"]
[Round "11"]
[TimeControl "180+1"]
[Date "2021.10.05"]
[WhiteClock "0:00:21"]
[BlackClock "0:00:03"]

1. d4 {[%clk 0:03:00]}  Nf6 {[%clk 0:02:59]} 2. c4 {[%clk 0:03:00]}  e6 {[%clk 0:03:00]} 3. Nf3 {[%clk 0:02:59]}  b6 {[%clk 0:03:00]} 4. g3 {[%clk 0:02:59]}  Ba6 {[%clk 0:03:00]} 5. b3 {[%clk 0:03:00]}  Bb4+ {[%clk 0:02:59]} 6. Bd2 {[%clk 0:02:58]}  Be7 {[%clk 0:02:59]} 7. Bg2 {[%clk 0:02:57]}  c6 {[%clk 0:02:59]} 8. Bc3 {[%clk 0:02:53]}  d5 {[%clk 0:02:59]} 9. Nbd2 {[%clk 0:02:49]}  Nbd7 {[%clk 0:02:59]} 10. e4 {[%clk 0:02:24]}  O-O {[%clk 0:02:08]} 11. O-O {[%clk 0:02:17]}  b5 {[%clk 0:02:08]} 12. Re1 {[%clk 0:02:09]}  bxc4 {[%clk 0:01:58]} 13. bxc4 {[%clk 0:02:08]}  dxc4 {[%clk 0:01:52]} 14. Qa4 {[%clk 0:01:56]}  Bb5 {[%clk 0:01:44]} 15. Qc2 {[%clk 0:01:56]}  Qc7 {[%clk 0:01:38]} 16. a4 {[%clk 0:01:55]}  Ba6 {[%clk 0:01:39]} 17. Rad1 {[%clk 0:01:18]}  Rab8 {[%clk 0:01:36]} 18. Bf1 {[%clk 0:01:17]}  c5 {[%clk 0:01:30]} 19. d5 {[%clk 0:01:17]}  exd5 {[%clk 0:01:23]} 20. exd5 {[%clk 0:01:17]}  Nxd5 {[%clk 0:01:23]} 21. Nxc4 {[%clk 0:01:03]}  Nxc3 {[%clk 0:01:23]} 22. Qxc3 {[%clk 0:00:50]}  Bf6 {[%clk 0:01:17]} 23. Qa5 {[%clk 0:00:50]}  Qxa5 {[%clk 0:00:57]} 24. Nxa5 {[%clk 0:00:50]}  Bxf1 {[%clk 0:00:58]} 25. Rxf1 {[%clk 0:00:48]}  Nb6 {[%clk 0:00:52]} 26. Nc6 {[%clk 0:00:48]}  Rb7 {[%clk 0:00:44]} 27. a5 {[%clk 0:00:48]}  Nc4 {[%clk 0:00:44]} 28. Rc1 {[%clk 0:00:47]}  Rc8 {[%clk 0:00:40]} 29. Rfe1 {[%clk 0:00:28]}  g6 {[%clk 0:00:18]} 30. Nxa7 {[%clk 0:00:20]}  Rxa7 {[%clk 0:00:18]} 31. Rxc4 {[%clk 0:00:21]}  Rxa5 {[%clk 0:00:19]} 32. Rec1 {[%clk 0:00:21]}  h5 {[%clk 0:00:13]} 33. h4 {[%clk 0:00:20]}  Kf8 {[%clk 0:00:13]} 34. Kf1 {[%clk 0:00:20]}  Be7 {[%clk 0:00:08]} 35. Ne5 {[%clk 0:00:20]}  Ra7 {[%clk 0:00:07]} 36. Rf4 {[%clk 0:00:19]}  Bd6 {[%clk 0:00:03]} 37. Re4 {[%clk 0:00:18]}  Bxe5 {[%clk 0:00:03]} 38. Rxe5 {[%clk 0:00:18]}  Rac7 {[%clk 0:00:03]} 39. Rc4 {[%clk 0:00:19]}  Kg7 {[%clk 0:00:03]} 40. f4 {[%clk 0:00:18]}  Kf6 {[%clk 0:00:03]} 41. Kf2 {[%clk 0:00:19]}  Rc6 {[%clk 0:00:03]} 42. Kf3 {[%clk 0:00:19]}  R8c7 {[%clk 0:00:03]} 43. Kf2 {[%clk 0:00:20]}  Rc8 {[%clk 0:00:03]} 44. Kf3 {[%clk 0:00:20]}  R8c7 {[%clk 0:00:04]} 45. Kf2 {[%clk 0:00:21]}  Kg7 {[%clk 0:00:05]} 46. Kf3 {[%clk 0:00:21]}  f6 {[%clk 0:00:05]} 47. Rd5 {[%clk 0:00:19]}  Kf7 {[%clk 0:00:06]} 48. f5 {[%clk 0:00:19]}  gxf5 {[%clk 0:00:04]} 49. Rxf5 {[%clk 0:00:20]}  Kg6 {[%clk 0:00:05]} 50. Rd5 {[%clk 0:00:20]}  Rc8 {[%clk 0:00:05]} 51. g4 {[%clk 0:00:20]}  hxg4+ {[%clk 0:00:05]} 52. Kxg4 {[%clk 0:00:21]}  R8c7 {[%clk 0:00:05]} 53. h5+ {[%clk 0:00:22]}  Kh6 {[%clk 0:00:06]} 54. Kf4 {[%clk 0:00:22]}  Rc8 {[%clk 0:00:06]} 55. Rf5 {[%clk 0:00:22]}  R8c7 {[%clk 0:00:05]} 56. Rd5 {[%clk 0:00:22]}  Rc8 {[%clk 0:00:03]} 57. Rf5 {[%clk 0:00:23]}  Kg7 {[%clk 0:00:04]} 58. Rd5 {[%clk 0:00:20]}  R8c7 {[%clk 0:00:03]} 59. Kf5 {[%clk 0:00:20]}  Kh6 {[%clk 0:00:03]} 60. Kf4 {[%clk 0:00:21]} 1/2-1/2


[Site "https://www.chess.com"]

[Event "Titled Tuesday Blitz October 5 2021"]
[White "Roman, Rodrigo"]
[Black "Kaufman, Raymond"]
[WhiteFideId "3701220"]
[BlackFideId "2015056"]
[WhiteElo "2036"]
[BlackElo "2321"]
[Result "1-0"]
[Round "11"]
[TimeControl "180+1"]
[Date "2021.10.05"]
[WhiteClock "0:00:17"]
[BlackClock "0:00:02"]

1. Nf3 {[%clk 0:02:56]}  c5 {[%clk 0:02:56]} 2. g3 {[%clk 0:02:54]}  Nc6 {[%clk 0:02:53]} 3. Bg2 {[%clk 0:02:55]}  g6 {[%clk 0:02:52]} 4. O-O {[%clk 0:02:54]}  Bg7 {[%clk 0:02:52]} 5. c3 {[%clk 0:02:53]}  d6 {[%clk 0:02:47]} 6. d4 {[%clk 0:02:53]}  Qc7 {[%clk 0:02:41]} 7. d5 {[%clk 0:02:50]}  Ne5 {[%clk 0:02:35]} 8. e4 {[%clk 0:02:51]}  Nxf3+ {[%clk 0:02:31]} 9. Qxf3 {[%clk 0:02:47]}  Nf6 {[%clk 0:02:32]} 10. a4 {[%clk 0:02:45]}  O-O {[%clk 0:02:32]} 11. h3 {[%clk 0:02:41]}  e6 {[%clk 0:02:31]} 12. Bg5 {[%clk 0:02:38]}  Nd7 {[%clk 0:02:25]} 13. Na3 {[%clk 0:02:38]}  Ne5 {[%clk 0:02:16]} 14. Qe2 {[%clk 0:02:36]}  exd5 {[%clk 0:02:15]} 15. exd5 {[%clk 0:02:35]}  Bf5 {[%clk 0:02:15]} 16. f4 {[%clk 0:02:31]}  Bd3 {[%clk 0:02:10]} 17. Qe3 {[%clk 0:02:30]}  Bxf1 {[%clk 0:02:09]} 18. Rxf1 {[%clk 0:02:26]}  Nd7 {[%clk 0:02:09]} 19. Nb5 {[%clk 0:02:24]}  Qb6 {[%clk 0:01:57]} 20. Qe7 {[%clk 0:02:24]}  c4+ {[%clk 0:01:54]} 21. Kh1 {[%clk 0:02:23]}  Nc5 {[%clk 0:01:47]} 22. Nxd6 {[%clk 0:02:20]}  Nd3 {[%clk 0:01:18]} 23. f5 {[%clk 0:02:18]}  Qxb2 {[%clk 0:00:26]} 24. f6 {[%clk 0:01:53]}  Bh8 {[%clk 0:00:26]} 25. Bh6 {[%clk 0:01:53]}  Qxc3 {[%clk 0:00:21]} 26. Bxf8 {[%clk 0:01:47]}  Rxf8 {[%clk 0:00:21]} 27. Ne4 {[%clk 0:01:30]}  Qd4 {[%clk 0:00:19]} 28. d6 {[%clk 0:01:30]}  c3 {[%clk 0:00:19]} 29. d7 {[%clk 0:01:11]}  c2 {[%clk 0:00:18]} 30. Nd6 {[%clk 0:01:11]}  Bxf6 {[%clk 0:00:13]} 31. Rxf6 {[%clk 0:01:07]}  c1=Q+ {[%clk 0:00:13]} 32. Rf1 {[%clk 0:01:06]}  Nf2+ {[%clk 0:00:12]} 33. Kh2 {[%clk 0:01:03]}  Qcd2 {[%clk 0:00:09]} 34. Qxf8+ {[%clk 0:00:35]}  Kxf8 {[%clk 0:00:09]} 35. d8=Q+ {[%clk 0:00:36]}  Kg7 {[%clk 0:00:10]} 36. Ne8+ {[%clk 0:00:35]}  Kh6 {[%clk 0:00:08]} 37. Qe7 {[%clk 0:00:26]}  f5 {[%clk 0:00:05]} 38. Qf8+ {[%clk 0:00:20]}  Kg5 {[%clk 0:00:02]} 39. Qe7+ {[%clk 0:00:17]}  Kh6 {[%clk 0:00:02]} 40. Nf6 {[%clk 0:00:17]} 1-0


[Site "https://www.chess.com"]

[Event "Titled Tuesday Blitz October 5 2021"]
[White "Royal, Shreyas"]
[Black "Piesik, Piotr"]
[WhiteFideId "448869"]
[BlackFideId "1136194"]
[WhiteElo "1931"]
[BlackElo "2336"]
[Result "0-1"]
[Round "11"]
[TimeControl "180+1"]
[Date "2021.10.05"]
[WhiteClock "0:01:01"]
[BlackClock "0:01:16"]

1. d4 {[%clk 0:02:59]}  c5 {[%clk 0:02:59]} 2. d5 {[%clk 0:02:59]}  e5 {[%clk 0:02:59]} 3. c4 {[%clk 0:02:58]}  d6 {[%clk 0:02:59]} 4. Nc3 {[%clk 0:02:58]}  Be7 {[%clk 0:03:00]} 5. e4 {[%clk 0:02:59]}  Bg5 {[%clk 0:03:00]} 6. Nf3 {[%clk 0:02:55]}  Bxc1 {[%clk 0:02:59]} 7. Qxc1 {[%clk 0:02:56]}  Ne7 {[%clk 0:03:00]} 8. h4 {[%clk 0:02:56]}  O-O {[%clk 0:02:59]} 9. h5 {[%clk 0:02:56]}  h6 {[%clk 0:02:59]} 10. Rg1 {[%clk 0:02:54]}  Bg4 {[%clk 0:02:55]} 11. Rh1 {[%clk 0:02:51]}  f5 {[%clk 0:02:53]} 12. Be2 {[%clk 0:02:50]}  Nd7 {[%clk 0:02:50]} 13. Qc2 {[%clk 0:02:38]}  Nf6 {[%clk 0:02:50]} 14. O-O-O {[%clk 0:02:37]}  Nxh5 {[%clk 0:02:40]} 15. Nxe5 {[%clk 0:02:36]}  Bxe2 {[%clk 0:02:27]} 16. Nxe2 {[%clk 0:02:36]}  Nf6 {[%clk 0:02:27]} 17. Nd3 {[%clk 0:02:22]}  Nxe4 {[%clk 0:02:26]} 18. f3 {[%clk 0:02:20]}  Ng5 {[%clk 0:02:24]} 19. Nef4 {[%clk 0:02:16]}  Qd7 {[%clk 0:02:19]} 20. Rde1 {[%clk 0:02:15]}  Rae8 {[%clk 0:02:17]} 21. Rh5 {[%clk 0:02:09]}  Nc8 {[%clk 0:02:10]} 22. Reh1 {[%clk 0:02:08]}  Qf7 {[%clk 0:01:58]} 23. Qd2 {[%clk 0:01:56]}  Nb6 {[%clk 0:01:53]} 24. b3 {[%clk 0:01:55]}  Nd7 {[%clk 0:01:52]} 25. Qf2 {[%clk 0:01:46]}  Ne5 {[%clk 0:01:44]} 26. Qh4 {[%clk 0:01:45]}  Ng6 {[%clk 0:01:38]} 27. Qh2 {[%clk 0:01:38]}  Nxf4 {[%clk 0:01:35]} 28. Nxf4 {[%clk 0:01:34]}  Qf6 {[%clk 0:01:35]} 29. Kb1 {[%clk 0:01:32]}  Re3 {[%clk 0:01:31]} 30. Rxg5 {[%clk 0:01:25]}  Qxg5 {[%clk 0:01:30]} 31. Ne6 {[%clk 0:01:25]}  Qe7 {[%clk 0:01:26]} 32. Nxf8 {[%clk 0:01:20]}  Qxf8 {[%clk 0:01:26]} 33. Qf4 {[%clk 0:01:17]}  Re5 {[%clk 0:01:25]} 34. Rh5 {[%clk 0:01:10]}  Qf6 {[%clk 0:01:24]} 35. Rh1 {[%clk 0:01:06]}  g5 {[%clk 0:01:24]} 36. Qd2 {[%clk 0:01:05]}  Kg7 {[%clk 0:01:23]} 37. Qa5 {[%clk 0:01:05]}  Re2 {[%clk 0:01:17]} 38. Kc1 {[%clk 0:01:01]}  Qa1# {[%clk 0:01:16]} 0-1


[Site "https://www.chess.com"]

[Event "Titled Tuesday Blitz October 5 2021"]
[White "Salinas Herrera, Pablo"]
[Black "Alvarez Calzadilla, Jose Avelino"]
[WhiteFideId "3407128"]
[BlackFideId "3526151"]
[WhiteElo "2541"]
[BlackElo "2525"]
[Result "1-0"]
[Round "11"]
[TimeControl "180+1"]
[Date "2021.10.05"]
[WhiteClock "0:01:01"]
[BlackClock "0:00:26"]

1. d4 {[%clk 0:03:00]}  Nf6 {[%clk 0:02:59]} 2. Nf3 {[%clk 0:03:00]}  g6 {[%clk 0:02:59]} 3. Bf4 {[%clk 0:03:00]}  Bg7 {[%clk 0:02:59]} 4. e3 {[%clk 0:03:01]}  O-O {[%clk 0:02:59]} 5. h3 {[%clk 0:03:02]}  d5 {[%clk 0:02:59]} 6. Nbd2 {[%clk 0:03:01]}  c5 {[%clk 0:02:59]} 7. dxc5 {[%clk 0:03:01]}  Nc6 {[%clk 0:02:57]} 8. a3 {[%clk 0:03:01]}  a5 {[%clk 0:02:55]} 9. c3 {[%clk 0:02:56]}  Nd7 {[%clk 0:02:53]} 10. Bb5 {[%clk 0:02:40]}  Nxc5 {[%clk 0:02:47]} 11. O-O {[%clk 0:02:40]}  e5 {[%clk 0:02:43]} 12. Bh2 {[%clk 0:02:38]}  e4 {[%clk 0:02:30]} 13. Nd4 {[%clk 0:02:38]}  Ne5 {[%clk 0:02:23]} 14. b4 {[%clk 0:02:38]}  Ncd3 {[%clk 0:02:18]} 15. Qb3 {[%clk 0:02:32]}  Qg5 {[%clk 0:01:35]} 16. Kh1 {[%clk 0:02:14]}  Rd8 {[%clk 0:01:18]} 17. f4 {[%clk 0:02:01]}  exf3 {[%clk 0:01:18]} 18. N2xf3 {[%clk 0:02:01]}  Nxf3 {[%clk 0:01:13]} 19. Nxf3 {[%clk 0:01:58]}  Qxe3 {[%clk 0:01:08]} 20. Bg1 {[%clk 0:01:58]}  Qe4 {[%clk 0:01:01]} 21. Ng5 {[%clk 0:01:57]}  Qe2 {[%clk 0:00:39]} 22. Nxf7 {[%clk 0:01:49]}  Rf8 {[%clk 0:00:34]} 23. Qxd5 {[%clk 0:01:38]}  Be6 {[%clk 0:00:34]} 24. Qxd3 {[%clk 0:01:28]}  Qxd3 {[%clk 0:00:34]} 25. Bxd3 {[%clk 0:01:28]}  axb4 {[%clk 0:00:34]} 26. Ng5 {[%clk 0:01:18]}  Rxf1 {[%clk 0:00:34]} 27. Rxf1 {[%clk 0:01:16]}  bxa3 {[%clk 0:00:30]} 28. Nxe6 {[%clk 0:01:15]}  a2 {[%clk 0:00:30]} 29. Nxg7 {[%clk 0:01:03]}  a1=Q {[%clk 0:00:29]} 30. Rxa1 {[%clk 0:01:02]}  Rxa1 {[%clk 0:00:30]} 31. Ne6 {[%clk 0:01:03]}  Rc1 {[%clk 0:00:29]} 32. c4 {[%clk 0:01:02]}  Rc3 {[%clk 0:00:26]} 33. Be2 {[%clk 0:01:01]}  Re3 {[%clk 0:00:26]} 34. Bxe3 {[%clk 0:01:01]} 1-0


[Site "https://www.chess.com"]